bitfinex/quotes_ETHUSD_20241216
["timestamp","ask_amount","ask_price","bid_price","bid_amount"]
[1734361562050,3.32168245,3918.8,3916.5,0.8012]
[1734361562257,2.98438405,3919.2,3916.6,0.02552605]
[1734361562549,2.98438405,3919.2,3916.6,0.81392605]
[1734361562756,2.98438405,3919.2,3916.7,0.07964435]
[1734361562985,2.98438405,3919.2,3916.8,0.7943]
[1734361563378,2.98438405,3919.2,3917.0,0.7943]
[1734361563586,0.29843841,3919.1,3917.0,0.7943]
[1734361563805,3.29843841,3919.1,3917.0,0.7943]
[1734361564017,2.98438405,3919.7,3917.1,0.81982444]
[1734361564209,0.3886,3919.9,3917.1,0.81982444]
[1734361564382,0.3886,3919.9,3917.3,0.7943]
[1734361565704,0.55,3919.8,3917.4,0.0796342]
[1734361565905,0.55,3919.9,3917.5,0.7669]
[1734361566104,3.0,3920.0,3917.4,0.29199045]
[1734361566105,0.55,3919.7,3917.6,0.0796342]
[1734361566309,0.55,3919.7,3917.7,1.03336986]
[1734361566608,0.55,3919.7,3917.9,0.7669]
[1734361566914,0.55,3919.7,3918.0,0.7669]
[1734361567564,0.3886,3920.3,3918.1,0.8209]
[1734361567765,3.25087589,3920.2,3918.1,0.8209]
[1734361567970,3.25087589,3919.2,3918.1,0.8209]
[1734361568979,0.55,3919.0,3918.1,0.8209]
[1734361569937,3.55,3918.6,3917.7,0.7773]
[1734361570114,0.55,3918.6,3917.7,0.7773]
[1734361571731,0.1308246,3919.9,3917.7,0.7773]
[1734361571732,3.25087589,3920.3,3917.8,0.02552498]
[1734361571945,0.3886,3920.5,3917.8,0.02552498]
[1734361571946,0.36946135,3920.0,3917.9,0.7754]
[1734361572085,0.36946135,3920.0,3917.8,0.29286896]
[1734361572086,3.25087589,3920.2,3918.0,0.26734398]
[1734361572290,3.25087589,3920.2,3916.9,0.02551815]
[1734361572291,3.25087589,3920.2,3918.1,1.04271236]
[1734361572547,3.25087589,3920.2,3918.1,0.7754]
[1734361572839,3.25087589,3919.2,3918.1,0.7754]
[1734361573002,3.0,3919.1,3918.1,0.7754]
[1734361573213,0.66394759,3919.0,3918.1,0.7754]
[1734361573409,3.55,3918.9,3918.1,0.7754]
[1734361573892,0.25,3920.2,3918.1,0.7754]
[1734361573893,3.0,3919.6,3918.1,0.7754]
[1734361574092,0.3886,3920.1,3918.1,0.7754]
[1734361574307,0.3886,3920.6,3918.3,0.8037]
[1734361574614,1.24163759,3920.4,3918.5,0.766]
[1734361574824,1.24163759,3920.4,3918.7,0.766]
[1734361575027,0.12713948,3919.8,3918.7,0.766]
[1734361575229,0.7979,3920.4,3918.9,0.766]
[1734361575451,0.7979,3920.4,3919.0,0.07961766]
[1734361575742,0.7979,3920.4,3919.1,1.07783095]
[1734361575943,0.7979,3920.4,3919.1,0.8105]
[1734361576303,4.77687589,3920.3,3919.1,0.8105]
[1734361576543,2.13492919,3920.2,3919.1,0.8105]
[1734361576754,4.77687589,3919.8,3917.4,0.8105]
[1734361577054,4.77687589,3919.8,3916.1,0.39743034]
[1734361577055,4.526,3919.7,3917.6,0.8147]
[1734361577199,0.55,3919.5,3917.7,0.26750804]
[1734361577421,0.55,3919.3,3917.6,0.8147]
[1734361577816,0.54646,3919.4,3917.6,0.8147]
[1734361578259,0.55,3919.6,3917.8,0.8147]
[1734361578422,0.55,3919.6,3917.9,0.89614369]
[1734361578621,0.55,3919.6,3918.0,0.89614369]
[1734361578823,0.55,3919.6,3918.1,0.89614369]
[1734361579127,3.55,3919.2,3918.1,0.8165]
[1734361579353,0.55,3919.0,3918.1,0.8165]
[1734361581252,3.25087589,3918.8,3918.1,0.8165]
[1734361581436,3.55,3918.7,3917.6,0.8075]
[1734361581643,3.55,3918.2,3916.2,0.8075]
[1734361581968,3.9386,3918.2,3916.4,0.8075]
[1734361582153,0.55,3918.0,3916.6,0.8075]
[1734361582357,0.3886,3918.6,3916.1,0.14743034]
[1734361582358,0.55,3918.6,3916.8,0.8075]
[1734361582545,0.55,3918.6,3916.1,0.14743034]
[1734361582546,0.55,3918.6,3917.0,0.8238]
[1734361582848,0.55,3918.8,3917.1,0.07965894]
[1734361583040,0.55,3918.8,3917.3,0.8238]
[1734361585083,0.55,3918.8,3916.2,0.02552506]
[1734361585084,0.55,3918.8,3917.5,0.7684]
[1734361585638,0.12854783,3918.9,3917.5,0.7684]
[1734361585992,0.12854783,3918.9,3917.7,0.8205]
[1734361587387,0.55,3918.8,3917.7,0.8205]
[1734361588145,0.12854783,3918.9,3917.7,0.8205]
[1734361588345,0.12854783,3918.9,3917.9,0.7896]
[1734361588346,1.65454783,3918.9,3917.9,0.7896]
[1734361588548,0.12854783,3918.9,3917.9,0.7896]
[1734361588782,1.05249606,3919.9,3917.9,0.7896]
[1734361589081,0.60892919,3920.2,3918.1,0.7896]
[1734361589277,0.7979,3920.4,3918.3,0.7896]
[1734361589278,0.12763781,3919.8,3918.3,0.7896]
[1734361589513,0.12763781,3919.8,3918.5,0.7896]
[1734361589924,0.7979,3920.4,3918.5,0.7896]
[1734361590479,0.7979,3920.4,3918.6,0.02551321]
[1734361590681,0.7979,3920.4,3918.7,0.7896]
[1734361590682,0.92829066,3920.4,3918.7,0.7896]
[1734361591926,0.55,3920.3,3918.7,0.7896]
[1734361592097,0.14782907,3920.2,3918.7,0.7896]
[1734361592458,0.55,3920.1,3918.7,0.7896]
[1734361594124,3.0,3919.7,3918.7,0.7896]
[1734361594328,0.55,3919.1,3918.7,0.7896]
[1734361594541,0.55,3919.1,3916.6,0.8163]
[1734361594846,1.05249606,3919.9,3916.7,0.84182377]
[1734361595048,3.25087589,3920.3,3917.1,0.25]
[1734361595049,0.12462289,3919.8,3917.1,0.25]
[1734361595177,0.92829066,3920.4,3917.6,0.25]
[1734361595382,0.92829066,3920.4,3917.8,0.8163]
[1734361595623,0.92829066,3920.4,3917.9,0.84181344]
[1734361595796,0.87829066,3920.4,3918.0,0.8163]
[1734361595995,0.87829066,3920.4,3917.9,0.02551344]
[1734361595996,0.7479,3920.4,3918.3,0.8163]
[1734361596247,0.7479,3920.4,3918.5,0.8163]
[1734361596396,0.7479,3920.4,3918.7,0.7703]
[1734361596724,0.7479,3920.4,3918.8,0.79580864]
[1734361596934,0.7479,3920.4,3919.0,0.7703]
[1734361598022,0.7479,3920.4,3919.2,0.8001]
[1734361598222,0.7479,3920.4,3919.3,0.07960625]
[1734361598433,0.7479,3920.4,3919.4,0.87970625]
[1734361598598,0.7479,3920.4,3919.6,0.7837]
[1734361598989,0.7479,3920.4,3919.7,0.02551055]
[1734361599225,1.05249606,3922.3,3919.8,0.86330005]
[1734361599442,0.25,3921.7,3920.0,0.7837]
[1734361599602,0.25,3921.7,3920.2,0.7837]
[1734361599807,0.25,3921.7,3920.3,0.7837]
[1734361600040,0.25,3921.7,3920.4,0.7837]
[1734361600379,0.25,3921.7,3919.1,0.25]
[1734361600380,0.25,3921.7,3920.6,0.7837]
[1734361601577,0.29843841,3922.9,3920.0,0.7885]
[1734361601732,3.25087589,3923.4,3920.8,0.7885]
[1734361602057,0.7837,3922.7,3920.9,0.81399665]
[1734361602434,0.7837,3922.7,3921.1,0.8044]
[1734361602633,0.7837,3922.7,3921.3,0.7683]
[1734361602848,0.7837,3922.7,3921.5,0.7683]
[1734361604273,0.7837,3922.7,3920.9,0.7726]
[1734361604482,0.7837,3922.7,3921.1,0.7756]
[1734361604685,0.7837,3922.7,3921.4,0.55]
[1734361604972,0.12712015,3924.3,3921.8,0.7756]
[1734361605180,0.12712015,3924.3,3922.0,0.7756]
[1734361605329,0.12712015,3924.3,3922.1,0.8214]
[1734361606279,1.3714,3924.2,3922.1,0.8214]
[1734361606429,0.55,3924.0,3922.1,0.8214]
[1734361607675,0.55,3923.8,3922.1,0.8214]
[1734361607975,3.92899631,3923.8,3922.1,0.8214]
[1734361608177,3.0,3923.2,3922.1,0.8214]
[1734361608391,0.55,3923.6,3922.1,0.8214]
[1734361608553,0.55,3923.4,3922.1,0.8214]
[1734361609675,0.73093092,3923.5,3922.1,0.8214]
[1734361609988,0.12943698,3923.7,3922.1,0.8214]
[1734361610189,0.8214,3924.2,3921.3,0.7933]
[1734361610389,0.8214,3924.2,3921.5,0.7933]
[1734361610592,0.8214,3924.2,3921.4,0.27548914]
[1734361610593,0.8214,3924.2,3921.6,0.81878578]
[1734361610795,0.8214,3924.2,3921.8,0.7933]
[1734361610978,0.8214,3924.2,3921.1,0.25]
[1734361610979,0.8214,3924.2,3922.0,0.7933]
[1734361611394,3.8214,3924.2,3922.0,0.7933]
[1734361611553,0.71976246,3924.1,3922.0,0.7933]
[1734361611754,0.55,3924.0,3922.0,0.7933]
[1734361612498,3.25087589,3923.8,3922.0,0.7933]
[1734361612718,3.55,3923.2,3922.0,0.7933]
[1734361612992,3.25087589,3922.8,3922.0,0.7933]
[1734361613195,3.87508759,3922.7,3921.6,0.7654]
[1734361613955,3.25087589,3922.3,3921.6,0.7654]
[1734361614197,3.25087589,3922.3,3920.1,0.12885]
[1734361614198,3.0,3921.7,3920.2,0.8181]
[1734361614382,0.55,3921.6,3920.2,0.8181]
[1734361615215,3.0,3922.2,3920.2,0.8181]
[1734361615417,0.55,3922.1,3920.2,0.8181]
[1734361615585,0.55,3922.2,3920.2,0.8181]
[1734361616030,3.25087589,3921.8,3920.2,0.8181]
[1734361616333,3.55,3921.7,3920.2,0.8181]
[1734361617383,3.25087589,3921.8,3920.1,0.12885]
[1734361617384,0.12899168,3921.8,3920.4,0.7665]
[1734361617824,3.55,3921.7,3920.4,0.7665]
[1734361618045,0.55,3921.5,3920.4,0.7665]
[1734361618703,0.55,3921.2,3920.4,0.7665]
[1734361618888,3.55,3921.2,3920.4,0.7665]
[1734361619090,3.9386,3921.2,3918.4,0.7665]
[1734361619317,3.9386,3921.2,3918.6,0.7665]
[1734361619526,0.55,3921.0,3918.7,0.84611507]
[1734361619787,0.55,3921.0,3918.7,0.7665]
[1734361620199,0.55,3921.0,3918.8,0.10513482]
[1734361620429,0.55,3921.0,3918.9,0.88321771]
[1734361620633,3.0,3921.7,3919.1,0.8059]
[1734361620838,1.18798676,3921.6,3919.3,0.8059]
[1734361621034,3.55,3921.2,3919.3,0.8059]
[1734361621221,3.25087589,3920.8,3919.3,0.8059]
[1734361621404,3.55,3920.7,3919.3,0.8059]
[1734361621607,0.68008759,3920.6,3919.3,0.8059]
[1734361622051,3.55,3920.7,3919.3,0.8059]
[1734361622229,0.55,3921.1,3919.3,0.8059]
[1734361622407,0.55,3920.9,3919.3,0.8059]
[1734361622806,3.0,3920.2,3919.3,0.8059]
[1734361623115,3.25087589,3919.8,3919.3,0.8059]
[1734361623316,3.25087589,3919.8,3917.1,0.39833578]
[1734361623317,3.87508759,3919.7,3918.4,0.7758]
[1734361624063,3.0,3920.2,3918.4,0.7758]
[1734361624222,3.0,3920.7,3918.6,0.765]
[1734361624430,0.55,3920.6,3918.6,0.765]
[1734361625458,0.55,3920.6,3917.6,0.7616]
[1734361625664,3.55,3920.2,3918.8,0.7616]
[1734361625956,0.55,3920.0,3918.8,0.7616]
[1734361626331,3.55,3919.7,3918.8,0.7616]
[1734361628235,3.0,3919.2,3918.8,0.7616]
[1734361628546,3.55,3919.2,3917.2,0.7525]
[1734361628858,3.55,3918.7,3917.2,0.7525]
[1734361629284,3.0,3918.2,3917.2,0.7525]
[1734361629421,1.23008759,3918.7,3917.2,0.7525]
[1734361629422,3.0,3917.7,3917.2,0.7525]
[1734361630050,0.55,3917.6,3917.2,0.7525]
[1734361630481,0.55,3917.6,3916.6,0.39859043]
[1734361630689,0.55,3917.6,3916.7,0.7973]
[1734361630978,1.23008759,3917.6,3916.7,0.7973]
[1734361631283,0.55,3917.6,3916.7,0.7973]
[1734361631702,3.0,3918.2,3916.7,0.7973]
[1734361632032,0.55,3918.1,3916.7,0.7973]
[1734361632207,1.05249606,3919.6,3916.6,0.39859043]
[1734361632208,3.25087589,3918.9,3916.8,0.81062738]
[1734361632527,0.32508759,3918.8,3916.9,0.81062569]
[1734361632689,3.25087589,3918.9,3916.9,0.7851]
[1734361632890,0.12595423,3918.2,3916.9,0.7851]
[1734361633634,3.63947589,3919.9,3917.0,0.81932572]
[1734361633935,3.63947589,3919.9,3917.2,0.7938]
[1734361633936,3.25087589,3919.9,3917.2,0.7938]
[1734361634135,0.39309635,3919.8,3917.2,0.7938]
[1734361634338,0.12544445,3919.1,3917.2,0.7938]
[1734361635507,0.12544445,3919.1,3917.3,0.83262165]
[1734361635726,0.39309635,3919.8,3917.3,0.83262165]
[1734361635942,0.39309635,3919.8,3917.3,0.8071]
[1734361636107,0.36439722,3919.7,3917.3,0.8071]
[1734361636645,3.37556273,3919.4,3917.3,0.8071]
[1734361636936,3.0,3918.8,3917.3,0.8071]
[1734361637290,0.55,3918.7,3917.3,0.8071]
[1734361639511,3.55,3918.3,3917.3,0.8071]
[1734361639760,0.55,3918.1,3917.3,0.8071]
[1734361641663,3.55,3917.8,3916.7,0.7589]
[1734361642423,0.55,3917.7,3916.7,0.7589]
[1734361643133,6.80087589,3916.8,3916.1,0.7751]
[1734361643354,0.55,3916.6,3916.1,0.7751]
[1734361643531,0.55,3917.1,3916.1,0.7751]
[1734361644019,3.1277756,3917.7,3916.1,0.7751]
[1734361644417,0.1277756,3917.7,3916.1,0.7751]
[1734361644616,0.1277756,3917.7,3916.2,0.7525]
[1734361645559,0.46564075,3917.7,3916.2,0.7525]
[1734361645743,3.46564075,3917.7,3916.2,0.7525]
[1734361645927,3.25087589,3917.3,3916.2,0.7525]
[1734361646126,3.0,3917.2,3916.2,0.7525]
[1734361646351,3.46564075,3917.7,3916.2,0.7525]
[1734361646543,0.55,3917.6,3916.2,0.7525]
[1734361646745,0.1277756,3917.7,3916.2,0.7525]
[1734361646946,3.25087589,3918.3,3916.3,0.8013]
[1734361647249,3.25087589,3918.3,3916.5,0.8013]
[1734361647428,3.25087589,3918.3,3916.6,0.88097172]
[1734361647627,0.45112632,3918.2,3916.6,0.8013]
[1734361647828,0.12603873,3918.2,3916.6,0.8013]
[1734361648029,0.8071,3918.6,3916.7,0.07966177]
[1734361648259,0.8071,3918.6,3916.8,1.01790998]
[1734361648465,0.8071,3918.6,3917.0,0.7503]
[1734361648632,0.8071,3918.6,3917.2,0.7503]
[1734361648968,0.12777263,3918.4,3917.2,0.7503]
[1734361649352,0.8071,3918.6,3917.3,0.10517983]
[1734361649551,0.8071,3918.6,3917.4,1.07848518]
[1734361649755,0.8071,3918.6,3917.5,0.8108]
[1734361650069,0.8071,3918.6,3917.7,0.7761]
[1734361650926,1.21289759,3918.6,3917.7,0.7761]
[1734361651268,3.55,3918.3,3917.7,0.7761]
[1734361651779,0.8071,3918.6,3917.7,0.7761]
[1734361652123,0.8071,3918.6,3915.7,0.39871212]
[1734361652124,0.8071,3918.6,3917.9,0.801]
[1734361652324,0.8071,3918.6,3918.0,1.09425493]
[1734361652525,3.25087589,3920.0,3918.2,0.801]
[1734361652843,1.34447959,3919.9,3918.4,0.801]
[1734361653174,1.34447959,3919.9,3918.6,0.801]
[1734361653175,1.14494626,3919.9,3918.6,0.801]
[1734361654427,1.019392,3919.9,3918.6,0.801]
[1734361655043,4.019392,3919.9,3918.6,0.801]
[1734361655675,0.55,3919.8,3918.6,0.801]
[1734361655880,0.55,3919.6,3918.6,0.801]
[1734361656085,3.0,3919.4,3918.6,0.801]
[1734361656250,3.25087589,3919.0,3918.6,0.801]
[1734361656450,0.55,3918.8,3918.0,0.7826]
[1734361656783,3.55,3918.4,3915.9,0.7609]
[1734361657081,0.55,3918.2,3916.1,0.7609]
[1734361657234,0.68008759,3918.3,3916.3,0.7609]
[1734361657434,0.68008759,3918.3,3916.5,0.7609]
[1734361657650,0.68008759,3918.3,3916.7,0.7609]
[1734361657835,3.25087589,3918.0,3916.7,0.7609]
[1734361658036,3.32508759,3917.9,3916.7,0.7609]
[1734361658761,0.55,3917.8,3916.7,0.7609]
[1734361659138,3.32508759,3917.9,3916.7,0.7609]
[1734361659536,0.68008759,3918.3,3916.7,0.7609]
[1734361659739,3.55,3918.4,3916.7,0.7609]
[1734361659975,3.55,3918.4,3915.8,0.02553181]
[1734361659976,3.0,3918.4,3916.8,0.07966708]
[1734361660240,3.0,3918.4,3916.8,1.03823284]
[1734361660393,3.0,3918.4,3917.0,0.7702]
[1734361660604,0.12992639,3918.3,3917.1,0.84986128]
[1734361660765,0.12992639,3918.3,3917.1,0.7702]
[1734361661590,0.12992639,3918.3,3917.3,0.827]
[1734361661765,0.12992639,3918.3,3917.4,0.07965521]
[1734361661949,0.12992639,3918.3,3917.5,0.90665521]
[1734361662151,3.25087589,3919.0,3917.5,0.827]
[1734361662347,0.32508759,3918.9,3917.5,0.827]
[1734361662595,0.32508759,3918.9,3917.6,0.07965152]
[1734361662897,0.78202679,3919.7,3917.7,0.85394532]
[1734361663064,1.019392,3919.9,3917.7,0.7743]
[1734361663266,1.019392,3919.9,3917.9,0.7743]
[1734361663497,1.019392,3919.9,3918.0,0.07964273]
[1734361663656,1.019392,3919.9,3918.1,0.85394273]
[1734361663857,1.019392,3919.9,3918.3,0.7843]
[1734361664077,1.019392,3919.9,3916.9,0.02551643]
[1734361664078,1.44641879,3919.9,3918.4,0.86394273]
[1734361664278,1.44641879,3919.9,3918.5,0.07962872]
[1734361664519,4.44641879,3919.9,3918.6,0.7843]
[1734361665839,0.12871965,3919.7,3918.6,0.7843]
[1734361666578,1.019392,3919.9,3918.6,0.7843]
[1734361668244,1.019392,3919.9,3918.8,0.7708]
[1734361671589,0.12423491,3920.1,3918.8,0.7708]
[1734361671889,1.05178222,3920.6,3917.0,0.889]
[1734361671890,0.7708,3920.6,3919.1,0.55]
[1734361672138,0.12798069,3921.1,3919.3,0.7637]
[1734361672311,0.12798069,3921.1,3919.1,0.55]
[1734361672312,0.12798069,3921.1,3919.5,0.7882]
[1734361672516,1.05178222,3921.5,3919.5,0.7882]
[1734361672720,5.90633837,3922.1,3919.4,0.1568777]
[1734361672721,1.05178222,3921.8,3919.7,0.7882]
[1734361673237,1.05178222,3921.8,3919.8,0.55]
[1734361673387,1.05178222,3922.2,3919.9,0.7589]
[1734361673584,0.1245576,3921.7,3919.9,0.7589]
[1734361674485,0.1245576,3921.7,3919.5,0.02550552]
[1734361674486,1.05178222,3922.2,3920.2,0.55]
[1734361674687,1.05178222,3922.8,3920.4,0.7589]
[1734361674937,2.49216445,3923.2,3920.2,0.55]
[1734361674938,1.05178222,3922.9,3920.5,0.7844]
[1734361675147,1.05178222,3923.0,3920.5,0.7589]
[1734361675442,1.05178222,3923.0,3920.2,0.55]
[1734361675443,1.44038222,3923.2,3920.7,0.7589]
[1734361675607,1.44038222,3923.2,3919.6,0.25]
[1734361675608,1.05178222,3923.2,3920.8,0.55]
[1734361675936,1.96627333,3923.6,3920.8,0.55]
[1734361675937,0.7589,3923.1,3921.1,0.7585]
[1734361676235,0.120456,3922.9,3921.1,0.7585]
[1734361676725,0.120456,3922.9,3921.1,0.78399551]
[1734361677541,0.7589,3923.1,3921.2,0.55]
[1734361677837,0.3886,3924.3,3920.9,2.4893]
[1734361677984,0.46912581,3924.2,3921.0,0.93348565]
[1734361678183,0.12909299,3924.0,3921.2,0.55]
[1734361678386,0.12909299,3924.0,3921.5,0.7696]
[1734361678617,0.12909299,3924.0,3921.8,0.55]
[1734361678800,0.13028021,3924.9,3921.8,0.55]
[1734361678801,0.30113984,3925.2,3922.0,0.7787]
[1734361679013,0.12972998,3924.7,3922.4,0.7787]
[1734361679215,0.12972998,3924.7,3922.1,0.13287]
[1734361679216,0.7787,3925.1,3922.7,0.7787]
[1734361679538,0.7787,3925.1,3922.9,0.7787]
[1734361680120,0.7787,3925.1,3923.1,0.7525]
[1734361680435,0.7787,3925.1,3923.2,0.7779842]
[1734361681019,0.7787,3925.1,3923.3,0.55]
[1734361681234,3.25087589,3925.7,3923.5,0.8218]
[1734361681551,0.8,3925.6,3923.7,0.8218]
[1734361682261,3.25087589,3925.2,3923.7,0.8218]
[1734361682960,3.8,3925.6,3923.8,0.02548083]
[1734361683166,0.70508759,3925.5,3923.0,0.81457902]
[1734361683346,0.70508759,3925.5,3923.3,0.55]
[1734361683522,0.8,3925.6,3923.4,0.02547785]
[1734361683721,2.54602,3927.7,3923.4,0.02547785]
[1734361683722,4.03327589,3926.7,3923.6,0.55]
[1734361683959,1.017661,3926.1,3924.0,0.55]
[1734361684260,1.017661,3926.1,3924.3,0.7692]
[1734361684711,4.017661,3926.1,3924.3,0.7692]
[1734361684916,0.73927483,3926.0,3924.3,0.7692]
[1734361685746,0.7824,3926.7,3923.3,0.02547517]
[1734361685747,3.25087589,3927.2,3924.5,0.8093]
[1734361685958,3.25087589,3927.2,3924.8,0.55]
[1734361686171,3.25087589,3927.2,3924.9,0.8093]
[1734361686448,0.12709912,3926.9,3924.9,0.8093]
[1734361686683,0.54582662,3926.9,3924.9,0.8093]
[1734361686990,3.25087589,3926.7,3924.9,0.8093]
[1734361687346,3.0,3926.6,3924.9,0.8093]
[1734361687545,3.25087589,3926.2,3924.9,0.8093]
[1734361687747,3.0,3926.1,3924.9,0.8093]
[1734361687977,0.62508759,3926.0,3924.9,0.8093]
[1734361688447,0.54582662,3926.9,3924.9,0.8093]
[1734361688771,0.54582662,3926.9,3925.0,0.7729]
[1734361689377,3.25087589,3926.7,3925.0,0.7729]
[1734361689580,0.54582662,3926.9,3925.0,0.7729]
[1734361689581,3.0,3926.1,3925.0,0.7729]
[1734361690092,3.25087589,3926.7,3925.0,0.7729]
[1734361690241,3.46091025,3926.6,3925.0,0.7729]
[1734361691310,3.0,3926.1,3925.0,0.7729]
[1734361693526,3.0,3925.6,3925.0,0.7729]
[1734361694008,3.25087589,3926.2,3925.0,0.7729]
[1734361694300,3.0,3926.1,3925.0,0.7729]
[1734361694503,3.0,3925.6,3925.0,0.7729]
[1734361694814,2.95,3925.6,3925.0,0.7729]
[1734361695392,3.25087589,3925.2,3922.8,0.7764]
[1734361695778,3.25087589,3925.2,3923.0,0.7862]
[1734361696706,2.95,3925.6,3923.0,0.7862]
[1734361696707,3.0,3924.6,3923.0,0.7862]
[1734361696872,0.62508759,3924.5,3923.0,0.7862]
[1734361697205,0.62508759,3924.5,3922.1,0.7688]
[1734361697353,0.62508759,3924.5,3922.3,0.7911]
[1734361697557,0.62508759,3924.5,3922.5,0.7911]
[1734361697807,0.62508759,3924.5,3922.7,0.7911]
[1734361698499,1.526,3925.7,3921.9,0.12443487]
[1734361698500,3.25087589,3925.2,3923.2,0.55]
[1734361698704,3.25087589,3925.7,3923.5,0.8253]
[1734361699006,0.63785291,3926.0,3924.0,0.55]
[1734361699172,0.63785291,3926.0,3923.0,0.25]
[1734361699173,3.25087589,3926.2,3924.2,0.55]
[1734361699378,3.25087589,3926.2,3924.5,0.55]
[1734361699592,3.25087589,3926.2,3924.6,0.7787]
[1734361700262,1.6061,3927.1,3924.7,0.55]
[1734361700263,3.25087589,3926.7,3924.7,0.55]
[1734361700461,3.25087589,3926.7,3924.8,0.77597188]
[1734361700691,2.54578,3928.1,3924.7,0.55]
[1734361700692,0.12721488,3928.2,3925.0,0.7505]
[1734361700873,3.41489009,3928.3,3925.4,0.8087]
[1734361701082,1.017221,3927.9,3925.7,0.55]
[1734361701418,3.41489009,3928.3,3926.1,0.8087]
[1734361701419,0.13166955,3928.1,3926.1,0.8087]
[1734361701562,3.41489009,3928.3,3926.1,0.8087]
[1734361701563,0.575463,3928.2,3926.1,0.8087]
[1734361701770,0.60392355,3928.1,3926.1,0.8087]
[1734361702488,3.0,3927.2,3926.1,0.8087]
[1734361703012,0.575463,3928.2,3926.2,0.55]
[1734361703169,3.41489009,3928.3,3926.4,0.7548]
[1734361703368,3.41489009,3928.3,3926.5,0.7963]
[1734361703720,4.16969009,3928.3,3926.5,0.7963]
[1734361704013,4.16969009,3928.3,3925.2,3.0]
[1734361704014,3.41489009,3928.3,3926.7,0.7963]
[1734361705512,3.0,3928.2,3926.8,0.822]
[1734361706817,3.0,3928.2,3927.0,0.822]
[1734361707527,3.25087589,3927.8,3927.0,0.822]
[1734361707747,3.32508759,3927.7,3927.0,0.822]
[1734361708530,0.1640142,3928.3,3927.0,0.822]
[1734361708727,0.1640142,3928.3,3927.1,0.82105646]
[1734361708926,0.1640142,3928.3,3927.2,0.07945775]
[1734361709128,0.1640142,3928.3,3927.1,0.7956]
[1734361709344,0.1640142,3928.3,3927.2,0.87505356]
[1734361709542,0.1640142,3928.3,3927.2,0.7956]
[1734361711681,0.55,3928.2,3927.2,0.7956]
[1734361711879,0.55,3928.2,3925.7,0.7605]
[1734361711880,3.0,3927.7,3925.7,0.7605]
[1734361712064,3.0,3927.2,3925.7,0.7605]
[1734361712248,3.0,3927.6,3925.7,0.7605]
[1734361712449,3.0,3927.6,3925.9,0.7624]
[1734361712650,3.59848377,3927.6,3925.9,0.7624]
[1734361713537,2.98483769,3927.2,3925.9,0.7624]
[1734361713732,3.0,3926.6,3923.4,0.25]
[1734361713933,3.0,3926.1,3925.4,0.7624]
[1734361714194,0.59848377,3926.0,3925.4,0.7624]
[1734361714481,0.59848377,3926.0,3922.5,0.25]
[1734361714482,3.0,3925.6,3923.7,0.7563]
[1734361714677,3.0,3925.6,3923.8,0.07951441]
[1734361714878,3.0,3925.6,3923.9,0.07951441]
[1734361715182,3.0,3925.6,3923.7,0.7563]
[1734361715183,3.0,3925.1,3923.7,0.7563]
[1734361715476,3.0,3924.6,3923.7,0.7563]
[1734361715639,3.0,3924.1,3921.7,0.7868]
[1734361715842,3.0,3924.1,3921.8,0.8663477]
[1734361716079,3.0,3924.1,3921.9,0.0795477]
[1734361716284,3.0,3923.2,3922.0,0.0795477]
[1734361716486,3.0,3922.7,3921.9,0.8093]
[1734361716937,3.24449089,3922.7,3921.9,0.8093]
[1734361717143,3.0,3922.1,3921.9,0.8093]
[1734361717478,3.0,3922.1,3919.6,0.02549497]
[1734361717479,3.0,3922.1,3920.3,0.7882]
[1734361717682,3.0,3922.1,3920.4,0.07957231]
[1734361717982,3.62444909,3922.1,3920.4,0.07956979]
[1734361718285,3.62444909,3922.1,3920.3,0.7882]
[1734361718286,2.0,3921.6,3920.3,0.7882]
[1734361718645,0.62444909,3922.1,3920.3,0.7882]
[1734361718991,0.13023521,3923.0,3920.5,0.7708]
[1734361718992,3.24449089,3922.7,3920.5,0.7708]
[1734361719153,3.24449089,3922.7,3920.7,0.7762]
[1734361719359,0.13023521,3923.0,3920.9,0.7762]
[1734361719552,0.13023521,3923.0,3921.1,0.7762]
[1734361719782,0.13023521,3923.0,3921.2,0.02549649]
[1734361719945,0.13023521,3923.0,3921.1,0.7762]
[1734361720486,0.46770782,3923.0,3921.1,0.7762]
[1734361720781,3.24449089,3922.7,3921.1,0.7762]
[1734361720981,0.46770782,3923.0,3921.1,0.7762]
[1734361721167,0.13023521,3923.0,3921.1,0.7762]
[1734361721785,3.24449089,3922.7,3921.1,0.7762]
[1734361722083,3.0,3922.6,3921.1,0.7762]
[1734361722241,0.8024,3924.0,3919.6,0.25]
[1734361722242,3.0,3923.1,3921.2,0.8016966]
[1734361722584,3.24449089,3923.7,3921.5,0.55]
[1734361722788,3.56893998,3923.7,3921.7,0.7762]
[1734361723141,3.24449089,3923.2,3921.7,0.7762]
[1734361723989,3.0,3923.1,3921.7,0.7762]
[1734361724379,0.7762,3923.3,3921.8,0.5754929]
[1734361724559,3.24449089,3924.2,3921.8,0.5754929]
[1734361724560,3.24449089,3924.2,3922.1,0.7796]
[1734361724738,3.24449089,3924.2,3922.0,0.55]
[1734361724739,0.575493,3924.1,3922.3,0.7864]
[1734361724939,0.13024074,3924.0,3922.3,0.7864]
[1734361725188,3.24449089,3923.7,3922.3,0.7864]
[1734361726542,3.0,3923.6,3922.3,0.7864]
[1734361728655,0.13024074,3924.0,3922.3,0.7864]
[1734361729369,3.24449089,3924.2,3922.6,0.55]
[1734361729554,3.24449089,3924.2,3922.8,0.8255]
[1734361730985,3.0,3924.1,3922.8,0.8255]
[1734361731181,1.018103,3924.5,3922.8,0.8255]